[Event "*** Titled Tuesday Blitz"]
[Site "Chess.com"]
[Date "2019.07.02"]
[Round "10"]
[White "PaulfromSPb"]
[Black "GremioPrudente"]
[Result "1/2-1/2"]
[WhiteElo "2591"]
[BlackElo "2234"]
[TimeControl "180+2"]
[EndTime "15:07:02 PDT"]
[Termination "Game drawn by agreement"]

1. Nc3 {[%clk 0:03:01.5]} 1... e6 {[%clk 0:03:00]} 2. Nf3 {[%clk 0:03:01.3]}
2... d5 {[%clk 0:03:00.8]} 3. e4 {[%clk 0:03:02.1]} 3... Nf6 {[%clk 0:03:00.4]}
4. exd5 {[%clk 0:03:01.9]} 4... exd5 {[%clk 0:02:58.8]} 5. Ne2 {[%clk
0:03:01.7]} 5... Bg4 {[%clk 0:02:57.7]} 6. Nfg1 {[%clk 0:02:59.5]} 6... Bd6
{[%clk 0:02:53.5]} 7. h3 {[%clk 0:02:51]} 7... Bxe2 {[%clk 0:02:49.1]} 8. Bxe2
{[%clk 0:02:51.5]} 8... O-O {[%clk 0:02:51]} 9. Nf3 {[%clk 0:02:52.4]} 9... Nc6
{[%clk 0:02:47.6]} 10. O-O {[%clk 0:02:52.6]} 10... Re8 {[%clk 0:02:47.8]} 11.
Re1 {[%clk 0:02:52.8]} 1/2-1/2

[Event "*** Titled Tuesday Blitz"]
[Site "Chess.com"]
[Date "2019.07.02"]
[Round "10"]
[White "Everyfishknows"]
[Black "dolynachess"]
[Result "0-1"]
[WhiteElo "2272"]
[BlackElo "2468"]
[TimeControl "180+2"]
[EndTime "15:10:26 PDT"]
[Termination "dolynachess won by resignation"]

1. d4 {[%clk 0:03:01.9]} 1... Nf6 {[%clk 0:03:00.5]} 2. c4 {[%clk 0:03:02.9]}
2... c5 {[%clk 0:03:01.7]} 3. Nf3 {[%clk 0:03:00.9]} 3... cxd4 {[%clk
0:03:02.1]} 4. Nxd4 {[%clk 0:03:02]} 4... e5 {[%clk 0:03:03.7]} 5. Nb5 {[%clk
0:02:52.6]} 5... d5 {[%clk 0:03:04]} 6. cxd5 {[%clk 0:02:46.1]} 6... Bc5 {[%clk
0:03:04.8]} 7. e3 {[%clk 0:02:32.2]} 7... O-O {[%clk 0:03:04.6]} 8. Be2 {[%clk
0:02:27.8]} 8... Nxd5 {[%clk 0:02:51.2]} 9. O-O {[%clk 0:02:25.8]} 9... Nc6
{[%clk 0:02:49.9]} 10. N5c3 {[%clk 0:02:25.2]} 10... Be6 {[%clk 0:02:50]} 11.
Nxd5 {[%clk 0:02:25.8]} 11... Bxd5 {[%clk 0:02:46.6]} 12. Nc3 {[%clk 0:02:25.5]}
12... Be6 {[%clk 0:02:48.2]} 13. b3 {[%clk 0:02:20.3]} 13... Rc8 {[%clk
0:02:47.6]} 14. Qxd8 {[%clk 0:02:19.1]} 14... Rfxd8 {[%clk 0:02:48.1]} 15. Bb2
{[%clk 0:02:15.5]} 15... Rd2 {[%clk 0:02:45.4]} 16. Rab1 {[%clk 0:02:14.4]}
16... Bb4 {[%clk 0:02:28.3]} 17. Bc1 {[%clk 0:01:21.1]} 17... Rc2 {[%clk
0:02:22.2]} 18. Bb2 {[%clk 0:00:47.9]} 18... Bxc3 {[%clk 0:02:21.6]} 19. Bd1
{[%clk 0:00:49]} 19... Rxb2 {[%clk 0:02:22.2]} 0-1

[Event "*** Titled Tuesday Blitz"]
[Site "Chess.com"]
[Date "2019.07.02"]
[Round "10"]
[White "hermionegrangermagic"]
[Black "Nightlord1"]
[Result "1-0"]
[WhiteElo "2390"]
[BlackElo "2189"]
[TimeControl "180+2"]
[EndTime "15:10:32 PDT"]
[Termination "hermionegrangermagic won by checkmate"]

1. e4 {[%clk 0:03:01.9]} 1... e5 {[%clk 0:02:59.7]} 2. Nf3 {[%clk 0:03:02.5]}
2... d5 {[%clk 0:03:00.4]} 3. Nxe5 {[%clk 0:02:57.9]} 3... dxe4 {[%clk 0:03:01]}
4. Bc4 {[%clk 0:02:55.1]} 4... Qg5 {[%clk 0:03:02.1]} 5. d4 {[%clk 0:02:45.5]}
5... Qxg2 {[%clk 0:03:01.7]} 6. Bxf7+ {[%clk 0:02:45.6]} 6... Ke7 {[%clk
0:03:01.8]} 7. Kd2 {[%clk 0:02:09.8]} 7... Nd7 {[%clk 0:02:53.1]} 8. Bxg8 {[%clk
0:01:41.2]} 8... Nxe5 {[%clk 0:02:49.8]} 9. dxe5 {[%clk 0:01:39.6]} 9... Rxg8
{[%clk 0:02:51.3]} 10. Qf1 {[%clk 0:01:24.7]} 10... Qf3 {[%clk 0:02:30.6]} 11.
Nc3 {[%clk 0:01:14.3]} 11... Bh3 {[%clk 0:02:28.7]} 12. Nd5+ {[%clk 0:01:03.8]}
12... Ke8 {[%clk 0:02:30.2]} 13. Qb5+ {[%clk 0:00:40.8]} 13... c6 {[%clk
0:02:28.2]} 14. Qxb7 {[%clk 0:00:37.3]} 14... Qxf2+ {[%clk 0:02:29.2]} 15. Kc3
{[%clk 0:00:25.7]} 15... Qc5+ {[%clk 0:02:30.1]} 16. Kd2 {[%clk 0:00:26]} 16...
Qxd5+ {[%clk 0:02:24.6]} 17. Ke1 {[%clk 0:00:27]} 17... Rd8 {[%clk 0:02:23]} 18.
Bg5 {[%clk 0:00:26.6]} 18... Be7 {[%clk 0:02:16.4]} 19. Qxe7# {[%clk 0:00:26.7]}
1-0

[Event "*** Titled Tuesday Blitz"]
[Site "Chess.com"]
[Date "2019.07.02"]
[Round "10"]
[White "Pechen_Yeltsina"]
[Black "BlackBoarder"]
[Result "1/2-1/2"]
[WhiteElo "2650"]
[BlackElo "2506"]
[TimeControl "180+2"]
[EndTime "15:10:58 PDT"]
[Termination "Game drawn by agreement"]

1. Nf3 {[%clk 0:03:01.9]} 1... Nf6 {[%clk 0:02:58.9]} 2. g3 {[%clk 0:03:03.1]}
2... g6 {[%clk 0:02:57.2]} 3. Bg2 {[%clk 0:03:05]} 3... Bg7 {[%clk 0:02:58.2]}
4. O-O {[%clk 0:03:06.9]} 4... O-O {[%clk 0:02:59.2]} 5. d3 {[%clk 0:03:08.2]}
5... d5 {[%clk 0:03:00]} 6. Nbd2 {[%clk 0:03:08.7]} 6... c5 {[%clk 0:02:43.8]}
7. e4 {[%clk 0:03:08.9]} 7... Nc6 {[%clk 0:02:44.2]} 8. Re1 {[%clk 0:03:07.5]}
8... dxe4 {[%clk 0:02:42]} 9. dxe4 {[%clk 0:03:07.1]} 9... Ng4 {[%clk
0:02:34.9]} 10. h3 {[%clk 0:02:58.1]} 10... Nge5 {[%clk 0:02:35]} 11. Nxe5
{[%clk 0:02:59.3]} 11... Nxe5 {[%clk 0:02:36]} 12. f4 {[%clk 0:02:56.5]} 12...
Nc6 {[%clk 0:02:37]} 13. c3 {[%clk 0:02:48.1]} 13... e5 {[%clk 0:02:37.9]} 14.
Nc4 {[%clk 0:02:48.3]} 14... Be6 {[%clk 0:02:36.6]} 15. Ne3 {[%clk 0:02:48.9]}
15... Qxd1 {[%clk 0:02:22.1]} 16. Rxd1 {[%clk 0:02:47.5]} 16... Rfd8 {[%clk
0:02:24]} 17. Nd5 {[%clk 0:02:48.6]} 17... Rd7 {[%clk 0:01:54.2]} 18. Be3 {[%clk
0:02:45.7]} 18... b6 {[%clk 0:01:53.8]} 19. Rd2 {[%clk 0:02:09.1]} 19... Rad8
{[%clk 0:01:53.7]} 20. Rad1 {[%clk 0:02:10]} 20... Kf8 {[%clk 0:01:53.7]}
1/2-1/2

[Event "*** Titled Tuesday Blitz"]
[Site "Chess.com"]
[Date "2019.07.02"]
[Round "10"]
[White "SavelievAlexei"]
[Black "axvesik"]
[Result "0-1"]
[WhiteElo "2360"]
[BlackElo "2435"]
[TimeControl "180+2"]
[EndTime "15:11:02 PDT"]
[Termination "axvesik won by resignation"]

1. e4 {[%clk 0:03:00.2]} 1... e6 {[%clk 0:03:00.6]} 2. d4 {[%clk 0:03:00.9]}
2... d5 {[%clk 0:03:01.5]} 3. Nc3 {[%clk 0:03:02.7]} 3... Bb4 {[%clk 0:03:01.4]}
4. e5 {[%clk 0:03:03.9]} 4... Qd7 {[%clk 0:02:59.9]} 5. Qg4 {[%clk 0:02:52]}
5... Bf8 {[%clk 0:02:59.6]} 6. Qd1 {[%clk 0:02:43.5]} 6... b6 {[%clk 0:02:40.2]}
7. Nf3 {[%clk 0:02:43.5]} 7... Ba6 {[%clk 0:02:38.9]} 8. Bxa6 {[%clk 0:02:44.3]}
8... Nxa6 {[%clk 0:02:39.3]} 9. O-O {[%clk 0:02:46.2]} 9... c5 {[%clk 0:02:39]}
10. a4 {[%clk 0:02:44.3]} 10... Nc7 {[%clk 0:02:35.8]} 11. Be3 {[%clk
0:02:42.8]} 11... Ne7 {[%clk 0:02:30.2]} 12. dxc5 {[%clk 0:02:38.1]} 12... Nf5
{[%clk 0:02:31.1]} 13. cxb6 {[%clk 0:02:35]} 13... Nxe3 {[%clk 0:02:31.9]} 14.
fxe3 {[%clk 0:02:36.3]} 14... axb6 {[%clk 0:02:33.1]} 15. e4 {[%clk 0:02:37.7]}
15... Bc5+ {[%clk 0:02:26.8]} 16. Kh1 {[%clk 0:02:38.7]} 16... d4 {[%clk
0:02:28.3]} 17. Nb5 {[%clk 0:02:39.3]} 17... Nxb5 {[%clk 0:02:26.5]} 18. axb5
{[%clk 0:02:40.6]} 18... Rxa1 {[%clk 0:02:26.2]} 19. Qxa1 {[%clk 0:02:41.5]}
19... O-O {[%clk 0:02:28.1]} 20. Qa4 {[%clk 0:02:38.3]} 20... d3 {[%clk
0:02:28.7]} 21. Rd1 {[%clk 0:02:37.4]} 21... dxc2 {[%clk 0:02:28.5]} 22. Qxc2
{[%clk 0:02:39.1]} 22... Qxb5 {[%clk 0:02:28.9]} 23. g3 {[%clk 0:02:07.5]} 23...
h6 {[%clk 0:02:27]} 24. Kg2 {[%clk 0:02:07.8]} 24... Ra8 {[%clk 0:02:24.1]} 25.
g4 {[%clk 0:02:06.3]} 25... Ra2 {[%clk 0:02:20.6]} 26. Rd2 {[%clk 0:02:07.1]}
26... Ra1 {[%clk 0:02:21.9]} 27. Re2 {[%clk 0:02:06.3]} 27... Rc1 {[%clk
0:01:58]} 28. Qd2 {[%clk 0:02:06.9]} 28... Bb4 {[%clk 0:01:59.3]} 29. Qd8+
{[%clk 0:02:05.4]} 29... Kh7 {[%clk 0:01:59.9]} 30. Rf2 {[%clk 0:02:00.4]} 30...
Bc5 {[%clk 0:01:47.1]} 31. Qd2 {[%clk 0:01:50.2]} 31... Bxf2 {[%clk 0:01:31.2]}
32. Qd1 {[%clk 0:01:49.4]} 32... Rxd1 {[%clk 0:01:29.7]} 0-1

[Event "*** Titled Tuesday Blitz"]
[Site "Chess.com"]
[Date "2019.07.02"]
[Round "10"]
[White "Korchmar_Vasiliy"]
[Black "enriquetejedor"]
[Result "1-0"]
[WhiteElo "2750"]
[BlackElo "2601"]
[TimeControl "180+2"]
[EndTime "15:11:04 PDT"]
[Termination "Korchmar_Vasiliy won on time"]

1. d4 {[%clk 0:03:01.9]} 1... Nf6 {[%clk 0:02:53]} 2. c4 {[%clk 0:03:02.6]} 2...
e6 {[%clk 0:02:48.1]} 3. g3 {[%clk 0:03:03.1]} 3... d5 {[%clk 0:02:41.7]} 4. Bg2
{[%clk 0:03:02.8]} 4... Bb4+ {[%clk 0:02:32.5]} 5. Nd2 {[%clk 0:03:03.4]} 5...
O-O {[%clk 0:02:15.4]} 6. Nf3 {[%clk 0:03:04.1]} 6... dxc4 {[%clk 0:01:59.6]} 7.
Qc2 {[%clk 0:03:04.5]} 7... b5 {[%clk 0:01:54.1]} 8. a4 {[%clk 0:03:05.3]} 8...
c6 {[%clk 0:01:41.7]} 9. axb5 {[%clk 0:03:06.4]} 9... cxb5 {[%clk 0:01:43.1]}
10. Ng5 {[%clk 0:03:07.6]} 10... h6 {[%clk 0:01:38.2]} 11. h4 {[%clk 0:03:08.7]}
11... g6 {[%clk 0:01:12.7]} 12. Nxf7 {[%clk 0:03:04.1]} 12... Kxf7 {[%clk
0:01:00.9]} 13. Bxa8 {[%clk 0:03:05.2]} 13... Qxd4 {[%clk 0:00:58.6]} 14. O-O
{[%clk 0:03:04]} 14... a5 {[%clk 0:00:49.8]} 15. Nf3 {[%clk 0:03:05.1]} 15...
Qa7 {[%clk 0:00:49.3]} 16. Be4 {[%clk 0:03:00.9]} 16... Nxe4 {[%clk 0:00:45.4]}
17. Qxe4 {[%clk 0:03:02.8]} 17... Kg7 {[%clk 0:00:38.3]} 18. Be3 {[%clk
0:03:00]} 18... Qb7 {[%clk 0:00:34.8]} 19. Bd4+ {[%clk 0:03:01.3]} 19... Kh7
{[%clk 0:00:35.9]} 20. Qe3 {[%clk 0:02:45.1]} 20... Nc6 {[%clk 0:00:33.8]} 21.
Bc5 {[%clk 0:02:44]} 21... Bxc5 {[%clk 0:00:14.3]} 22. Qxc5 {[%clk 0:02:45.9]}
22... e5 {[%clk 0:00:14.9]} 23. Qxf8 {[%clk 0:02:45.7]} 23... Bh3 {[%clk
0:00:07.4]} 24. Rfd1 {[%clk 0:02:45.5]} 24... Nd4 {[%clk 0:00:06.8]} 25. Rxd4
{[%clk 0:02:39.8]} 1-0

[Event "*** Titled Tuesday Blitz"]
[Site "Chess.com"]
[Date "2019.07.02"]
[Round "10"]
[White "ozates"]
[Black "LisikValera"]
[Result "0-1"]
[WhiteElo "2322"]
[BlackElo "2461"]
[TimeControl "180+2"]
[EndTime "15:11:14 PDT"]
[Termination "LisikValera won by resignation"]

1. e4 {[%clk 0:03:01.9]} 1... e6 {[%clk 0:03:00.5]} 2. d4 {[%clk 0:03:02.4]}
2... d5 {[%clk 0:03:01]} 3. Nd2 {[%clk 0:02:59.4]} 3... Nc6 {[%clk 0:03:01.1]}
4. Ngf3 {[%clk 0:02:56.2]} 4... Nf6 {[%clk 0:03:02.2]} 5. e5 {[%clk 0:02:56.2]}
5... Nd7 {[%clk 0:03:03.4]} 6. b3 {[%clk 0:02:56]} 6... f6 {[%clk 0:02:52.3]} 7.
Bb2 {[%clk 0:02:50.8]} 7... fxe5 {[%clk 0:02:51.7]} 8. dxe5 {[%clk 0:02:52.7]}
8... Be7 {[%clk 0:02:51.1]} 9. Bd3 {[%clk 0:02:53.8]} 9... O-O {[%clk
0:02:50.6]} 10. a3 {[%clk 0:02:53.7]} 10... Nc5 {[%clk 0:02:50.5]} 11. Qe2
{[%clk 0:02:54.6]} 11... Nxd3+ {[%clk 0:02:50.9]} 12. cxd3 {[%clk 0:02:55.1]}
12... Bd7 {[%clk 0:02:41.4]} 13. b4 {[%clk 0:02:56.2]} 13... a6 {[%clk
0:02:39.3]} 14. O-O {[%clk 0:02:52.8]} 14... Be8 {[%clk 0:02:39.1]} 15. Qe3
{[%clk 0:02:50.3]} 15... Bg6 {[%clk 0:02:31.8]} 16. Nd4 {[%clk 0:02:49.7]} 16...
Nxd4 {[%clk 0:02:30.6]} 17. Bxd4 {[%clk 0:02:51.6]} 17... Qd7 {[%clk 0:02:23.4]}
18. Nb3 {[%clk 0:02:48.4]} 18... b6 {[%clk 0:02:19]} 19. f4 {[%clk 0:02:45.9]}
19... Qb5 {[%clk 0:02:16.3]} 20. Rac1 {[%clk 0:02:30]} 20... c5 {[%clk
0:02:15.4]} 21. bxc5 {[%clk 0:02:27.7]} 21... Qxb3 {[%clk 0:02:14.7]} 22. cxb6
{[%clk 0:02:27.9]} 22... Qxd3 {[%clk 0:02:05.7]} 23. b7 {[%clk 0:02:28.2]} 23...
Qxe3+ {[%clk 0:02:01.6]} 24. Bxe3 {[%clk 0:02:28.3]} 24... Rab8 {[%clk
0:02:02.9]} 25. Rc7 {[%clk 0:02:29.6]} 25... Bd8 {[%clk 0:01:56.7]} 26. Rd7
{[%clk 0:02:30]} 26... Be8 {[%clk 0:01:53]} 27. Rxd8 {[%clk 0:02:04]} 27... Rxd8
{[%clk 0:01:52.9]} 28. Ba7 {[%clk 0:02:04.9]} 28... Bc6 {[%clk 0:01:51.9]} 29.
Rb1 {[%clk 0:01:38.7]} 29... Bxb7 {[%clk 0:01:36.5]} 30. Rxb7 {[%clk 0:01:40.6]}
30... Rxf4 {[%clk 0:01:37]} 31. Bb6 {[%clk 0:01:37.3]} 31... Rdf8 {[%clk
0:01:30.1]} 32. h3 {[%clk 0:01:38.6]} 32... R4f7 {[%clk 0:01:30.3]} 0-1

[Event "*** Titled Tuesday Blitz"]
[Site "Chess.com"]
[Date "2019.07.02"]
[Round "10"]
[White "vlad_Sid"]
[Black "rasmussvane"]
[Result "0-1"]
[WhiteElo "2574"]
[BlackElo "2890"]
[TimeControl "180+2"]
[EndTime "15:11:28 PDT"]
[Termination "rasmussvane won by resignation"]

1. c4 {[%clk 0:02:57.2]} 1... e6 {[%clk 0:02:59.5]} 2. g3 {[%clk 0:02:58.7]}
2... d5 {[%clk 0:02:59.9]} 3. Bg2 {[%clk 0:02:59.4]} 3... Nf6 {[%clk 0:03:01.4]}
4. Nf3 {[%clk 0:03:00.6]} 4... dxc4 {[%clk 0:02:56.7]} 5. Qa4+ {[%clk
0:03:01.1]} 5... Bd7 {[%clk 0:02:57.9]} 6. Qxc4 {[%clk 0:03:02.7]} 6... c5
{[%clk 0:02:59.5]} 7. Ne5 {[%clk 0:03:03.9]} 7... Qc8 {[%clk 0:03:00.9]} 8. O-O
{[%clk 0:03:05]} 8... Nc6 {[%clk 0:03:01.8]} 9. Nxd7 {[%clk 0:03:06.2]} 9...
Qxd7 {[%clk 0:03:03.7]} 10. b3 {[%clk 0:03:07.6]} 10... Be7 {[%clk 0:03:04.5]}
11. Bb2 {[%clk 0:03:08.8]} 11... O-O {[%clk 0:03:06.1]} 12. d3 {[%clk 0:03:10]}
12... Rfd8 {[%clk 0:03:06.6]} 13. Qc2 {[%clk 0:03:11.4]} 13... Rac8 {[%clk
0:03:04.9]} 14. Nc3 {[%clk 0:03:12.8]} 14... b6 {[%clk 0:03:05.2]} 15. Qd2
{[%clk 0:03:12.3]} 15... Nd5 {[%clk 0:03:00.5]} 16. Rac1 {[%clk 0:03:12.3]}
16... Bf6 {[%clk 0:02:45.8]} 17. Nxd5 {[%clk 0:03:05.5]} 17... Bxb2 {[%clk
0:02:46.2]} 18. Qxb2 {[%clk 0:02:55.7]} 18... exd5 {[%clk 0:02:46.6]} 19. a3
{[%clk 0:02:53.7]} 19... a5 {[%clk 0:02:47.1]} 20. e3 {[%clk 0:02:33.9]} 20...
d4 {[%clk 0:02:00.5]} 21. Bxc6 {[%clk 0:02:12.8]} 21... Rxc6 {[%clk 0:01:54.8]}
22. exd4 {[%clk 0:02:12.6]} 22... Qxd4 {[%clk 0:01:55]} 23. Qe2 {[%clk
0:02:08.5]} 23... Re6 {[%clk 0:01:49.7]} 24. Qf3 {[%clk 0:02:06.4]} 24... g6
{[%clk 0:01:35.8]} 25. Rfd1 {[%clk 0:02:04.5]} 25... Qb2 {[%clk 0:01:25.4]} 26.
Rc4 {[%clk 0:01:39.4]} 26... Qxb3 {[%clk 0:01:21.3]} 27. a4 {[%clk 0:01:39.8]}
27... Red6 {[%clk 0:01:20.5]} 28. Rf4 {[%clk 0:01:38.6]} 28... Rxd3 {[%clk
0:01:17.5]} 29. Rxd3 {[%clk 0:01:37.9]} 29... Rxd3 {[%clk 0:01:17.7]} 30. Qa8+
{[%clk 0:01:35.2]} 30... Kg7 {[%clk 0:01:18]} 31. Qc6 {[%clk 0:01:36.1]} 31...
Rd1+ {[%clk 0:01:17.7]} 32. Kg2 {[%clk 0:01:37.3]} 32... Qd5+ {[%clk 0:01:19.3]}
0-1

[Event "*** Titled Tuesday Blitz"]
[Site "Chess.com"]
[Date "2019.07.02"]
[Round "10"]
[White "wonderfultime"]
[Black "swisspower96"]
[Result "1-0"]
[WhiteElo "2905"]
[BlackElo "2727"]
[TimeControl "180+2"]
[EndTime "15:11:34 PDT"]
[Termination "wonderfultime won by resignation"]

1. Nf3 {[%clk 0:03:01.9]} 1... d5 {[%clk 0:03:00.2]} 2. c4 {[%clk 0:03:01.9]}
2... d4 {[%clk 0:03:01.1]} 3. b4 {[%clk 0:02:55.3]} 3... f6 {[%clk 0:03:02.3]}
4. e3 {[%clk 0:02:54.8]} 4... e5 {[%clk 0:03:03.4]} 5. c5 {[%clk 0:02:56.4]}
5... a5 {[%clk 0:03:02.4]} 6. Qa4+ {[%clk 0:02:54.8]} 6... Bd7 {[%clk
0:03:01.9]} 7. b5 {[%clk 0:02:55.8]} 7... Bxc5 {[%clk 0:02:47.5]} 8. Bc4 {[%clk
0:02:55.3]} 8... Nh6 {[%clk 0:02:34.8]} 9. exd4 {[%clk 0:02:51.2]} 9... exd4
{[%clk 0:02:13.9]} 10. O-O {[%clk 0:02:51]} 10... Kf8 {[%clk 0:02:10.8]} 11. Ba3
{[%clk 0:02:48.9]} 11... b6 {[%clk 0:02:04.6]} 12. Nxd4 {[%clk 0:02:43.4]} 12...
Qe7 {[%clk 0:02:02.8]} 13. Bd5 {[%clk 0:02:18.4]} 13... Ra7 {[%clk 0:01:57.9]}
14. Bxc5 {[%clk 0:02:07.7]} 14... Qxc5 {[%clk 0:01:58.1]} 15. Nc3 {[%clk
0:02:08.8]} 15... Na6 {[%clk 0:01:31.3]} 16. bxa6 {[%clk 0:01:57.6]} 16... Bxa4
{[%clk 0:01:28.1]} 17. Ne6+ {[%clk 0:01:58.2]} 17... Ke7 {[%clk 0:01:19.6]} 18.
Nxc5 {[%clk 0:02:00.1]} 18... Bc2 {[%clk 0:01:18.7]} 19. Rfe1+ {[%clk
0:01:57.4]} 19... Kd6 {[%clk 0:01:16.8]} 20. Rac1 {[%clk 0:01:06.7]} 20... Kxc5
{[%clk 0:01:14.7]} 21. Rxc2 {[%clk 0:01:07.8]} 21... b5 {[%clk 0:01:08.7]} 22.
Bb7 {[%clk 0:01:06]} 1-0

[Event "*** Titled Tuesday Blitz"]
[Site "Chess.com"]
[Date "2019.07.02"]
[Round "10"]
[White "Aknok"]
[Black "vugarrasulov"]
[Result "0-1"]
[WhiteElo "2365"]
[BlackElo "2756"]
[TimeControl "180+2"]
[EndTime "15:12:03 PDT"]
[Termination "vugarrasulov won on time"]

1. d4 {[%clk 0:03:01.9]} 1... Nf6 {[%clk 0:03:00.5]} 2. c4 {[%clk 0:03:02.4]}
2... g6 {[%clk 0:03:01]} 3. Nc3 {[%clk 0:03:02.7]} 3... d5 {[%clk 0:03:01.6]} 4.
cxd5 {[%clk 0:03:04.6]} 4... Nxd5 {[%clk 0:03:02.5]} 5. Bd2 {[%clk 0:03:06.5]}
5... Bg7 {[%clk 0:03:02.9]} 6. e4 {[%clk 0:03:07.5]} 6... Nb6 {[%clk 0:03:04.4]}
7. Be3 {[%clk 0:03:08.5]} 7... O-O {[%clk 0:03:05.6]} 8. Be2 {[%clk 0:03:09]}
8... f5 {[%clk 0:03:05.1]} 9. Qb3+ {[%clk 0:02:57.8]} 9... Kh8 {[%clk
0:03:05.1]} 10. Nh3 {[%clk 0:02:56.2]} 10... Nc6 {[%clk 0:03:03.4]} 11. Ng5
{[%clk 0:02:38.8]} 11... f4 {[%clk 0:03:03.3]} 12. Nf7+ {[%clk 0:02:14.2]} 12...
Rxf7 {[%clk 0:03:03.9]} 13. Qxf7 {[%clk 0:02:16.1]} 13... fxe3 {[%clk
0:03:05.3]} 14. fxe3 {[%clk 0:02:17.7]} 14... Qg8 {[%clk 0:02:53.8]} 15. Qxg8+
{[%clk 0:02:08.9]} 15... Kxg8 {[%clk 0:02:55.7]} 16. Nb5 {[%clk 0:02:06.6]}
16... e5 {[%clk 0:02:50.4]} 17. Nxc7 {[%clk 0:01:58.4]} 17... Rb8 {[%clk
0:02:50.8]} 18. d5 {[%clk 0:01:55.4]} 18... Nd8 {[%clk 0:02:46.7]} 19. Rc1
{[%clk 0:01:13.5]} 19... Nf7 {[%clk 0:02:45.1]} 20. Ne8 {[%clk 0:00:58.7]} 20...
Bh6 {[%clk 0:02:42.2]} 21. Rc7 {[%clk 0:00:47.7]} 21... Na8 {[%clk 0:02:12.6]}
22. Rc3 {[%clk 0:00:19.4]} 22... Kf8 {[%clk 0:02:11.5]} 23. Nf6 {[%clk
0:00:18.9]} 23... Ke7 {[%clk 0:02:12.8]} 24. O-O {[%clk 0:00:12.6]} 24... Bg7
{[%clk 0:02:12.3]} 25. Nxh7 {[%clk 0:00:10.2]} 25... Bd7 {[%clk 0:02:11]} 26. h3
{[%clk 0:00:07.3]} 26... Rh8 {[%clk 0:02:10.1]} 27. Rxf7+ {[%clk 0:00:06.8]}
27... Kxf7 {[%clk 0:02:10.4]} 28. Ng5+ {[%clk 0:00:08.7]} 28... Ke7 {[%clk
0:02:12]} 29. b4 {[%clk 0:00:05.1]} 29... Rc8 {[%clk 0:02:12.8]} 30. Rxc8 {[%clk
0:00:04.3]} 30... Bxc8 {[%clk 0:02:14.7]} 31. Kf2 {[%clk 0:00:05.1]} 31... Nb6
{[%clk 0:02:14.7]} 0-1

[Event "*** Titled Tuesday Blitz"]
[Site "Chess.com"]
[Date "2019.07.02"]
[Round "10"]
[White "VFernandezB"]
[Black "doons21"]
[Result "1-0"]
[WhiteElo "2362"]
[BlackElo "2413"]
[TimeControl "180+2"]
[EndTime "15:12:08 PDT"]
[Termination "VFernandezB won by resignation"]

1. d4 {[%clk 0:03:01.9]} 1... Nf6 {[%clk 0:03:00.9]} 2. c4 {[%clk 0:03:02.4]}
2... g6 {[%clk 0:03:02]} 3. g3 {[%clk 0:03:03.8]} 3... Bg7 {[%clk 0:03:03.1]} 4.
Bg2 {[%clk 0:03:05.5]} 4... O-O {[%clk 0:03:05]} 5. Nf3 {[%clk 0:03:05.9]} 5...
d6 {[%clk 0:03:05.4]} 6. O-O {[%clk 0:03:07.2]} 6... c6 {[%clk 0:03:06.8]} 7.
Nc3 {[%clk 0:03:08.2]} 7... Bf5 {[%clk 0:03:08.3]} 8. Nh4 {[%clk 0:03:07.2]}
8... Be6 {[%clk 0:03:08.8]} 9. d5 {[%clk 0:03:06.2]} 9... cxd5 {[%clk
0:03:10.7]} 10. cxd5 {[%clk 0:03:07.4]} 10... Bd7 {[%clk 0:03:11.6]} 11. e4
{[%clk 0:03:08.5]} 11... a5 {[%clk 0:02:52.6]} 12. a4 {[%clk 0:03:06]} 12... Na6
{[%clk 0:02:52.6]} 13. Nf3 {[%clk 0:03:04.3]} 13... Nb4 {[%clk 0:02:49]} 14. Nd4
{[%clk 0:03:05.3]} 14... Rc8 {[%clk 0:02:49.3]} 15. h3 {[%clk 0:03:03.7]} 15...
Qb6 {[%clk 0:02:42.3]} 16. Be3 {[%clk 0:03:02.7]} 16... Qa6 {[%clk 0:02:43.9]}
17. Ndb5 {[%clk 0:03:00.4]} 17... Rc4 {[%clk 0:02:05.2]} 18. Re1 {[%clk
0:02:55.2]} 18... Rfc8 {[%clk 0:01:40.8]} 19. Bf1 {[%clk 0:02:56.1]} 19... Nxe4
{[%clk 0:01:41.6]} 20. Bxc4 {[%clk 0:02:55.8]} 20... Rxc4 {[%clk 0:01:42]} 21.
Nxe4 {[%clk 0:02:56.5]} 21... Rxe4 {[%clk 0:01:43.1]} 22. Rc1 {[%clk 0:02:52.4]}
22... Bxh3 {[%clk 0:01:15.5]} 23. Qf3 {[%clk 0:02:44]} 23... f5 {[%clk
0:00:54.6]} 24. Bg5 {[%clk 0:02:41.4]} 24... Bg4 {[%clk 0:00:48.8]} 25. Rc8+
{[%clk 0:02:28.7]} 25... Kf7 {[%clk 0:00:48.9]} 26. Rxe4 {[%clk 0:02:26.8]}
26... Bf6 {[%clk 0:00:40.8]} 27. Rxg4 {[%clk 0:02:24.3]} 27... fxg4 {[%clk
0:00:41.6]} 28. Qf4 {[%clk 0:02:23.3]} 28... Nxd5 {[%clk 0:00:40.9]} 29. Qc4
{[%clk 0:02:15.6]} 29... e6 {[%clk 0:00:29.8]} 30. Bxf6 {[%clk 0:02:14.6]} 30...
Kxf6 {[%clk 0:00:28.8]} 31. Qxg4 {[%clk 0:02:11.7]} 31... Qb6 {[%clk 0:00:28.5]}
32. Qf3+ {[%clk 0:02:12.7]} 32... Ke5 {[%clk 0:00:28.6]} 33. Rc2 {[%clk
0:02:07.4]} 1-0

[Event "*** Titled Tuesday Blitz"]
[Site "Chess.com"]
[Date "2019.07.02"]
[Round "10"]
[White "KaterynaLagno"]
[Black "GelmanAlexander"]
[Result "0-1"]
[WhiteElo "2641"]
[BlackElo "2574"]
[TimeControl "180+2"]
[EndTime "15:12:09 PDT"]
[Termination "GelmanAlexander won by resignation"]

1. e4 {[%clk 0:03:01.9]} 1... c5 {[%clk 0:02:59.6]} 2. Nf3 {[%clk 0:03:03]} 2...
e6 {[%clk 0:03:00.2]} 3. d4 {[%clk 0:03:03.9]} 3... cxd4 {[%clk 0:03:00.9]} 4.
Nxd4 {[%clk 0:03:05.8]} 4... d6 {[%clk 0:03:01.5]} 5. c4 {[%clk 0:03:05.9]} 5...
b6 {[%clk 0:03:01.7]} 6. Nc3 {[%clk 0:03:06]} 6... Bb7 {[%clk 0:03:03.1]} 7. Be3
{[%clk 0:03:07.5]} 7... Nf6 {[%clk 0:03:04.3]} 8. f3 {[%clk 0:03:08.6]} 8... a6
{[%clk 0:03:05.8]} 9. Be2 {[%clk 0:03:08.8]} 9... Be7 {[%clk 0:03:07.3]} 10. O-O
{[%clk 0:03:10.3]} 10... O-O {[%clk 0:03:08.8]} 11. Qd2 {[%clk 0:03:07.2]} 11...
Nbd7 {[%clk 0:03:08.8]} 12. b4 {[%clk 0:02:51.5]} 12... Rc8 {[%clk 0:03:07.7]}
13. Rfc1 {[%clk 0:02:44.5]} 13... Re8 {[%clk 0:02:37.3]} 14. Nb3 {[%clk
0:02:42.6]} 14... d5 {[%clk 0:02:28.9]} 15. cxd5 {[%clk 0:02:36.3]} 15... exd5
{[%clk 0:02:17.5]} 16. Nxd5 {[%clk 0:02:30.1]} 16... Bxd5 {[%clk 0:01:56.9]} 17.
exd5 {[%clk 0:02:26.4]} 17... Bxb4 {[%clk 0:01:55]} 18. Qxb4 {[%clk 0:02:24.9]}
18... Rxe3 {[%clk 0:01:53.3]} 19. Bxa6 {[%clk 0:02:26.2]} 19... Rxc1+ {[%clk
0:00:44.3]} 20. Rxc1 {[%clk 0:02:28]} 20... Nxd5 {[%clk 0:00:44.8]} 21. Qd4
{[%clk 0:02:27.4]} 21... Qg5 {[%clk 0:00:42.4]} 22. Bb7 {[%clk 0:01:52.6]} 22...
Nf4 {[%clk 0:00:34]} 23. Rc8+ {[%clk 0:01:14]} 23... Nf8 {[%clk 0:00:35]} 24.
Rd8 {[%clk 0:01:01.6]} 0-1